[Event "Groningen Festival 2018"]
[Site "Groningen"]
[Date "2018.12.28"]
[Round "7"]
[White "Krasenkova, Ilena"]
[Black "Cerveny, Martin"]
[Result "1/2-1/2"]
[ECO "E94"]
[WhiteElo "2144"]
[BlackElo "2347"]
[Annotator "NA"]
[PlyCount "146"]
[EventDate "2018.12.22"]
[EventType "swiss"]
[EventCountry "NED"]
[SourceTitle "playchess.com"]
[Source "ChessBase"]
[SourceQuality "1"]
[TimeControl "40/5400+30:1800+30"]

1. d4 {[%emt 0:00:00]} d6 {[%emt 0:00:00]} 2. Nf3 {[%emt 0:00:00]} Nf6 {[%emt 0:00:22]} 3. c4 {[%emt 0:00:00]} Nbd7 {[%emt 0:00:11]} 4. Nc3 {[%emt 0:00:16]} e5 {[%emt 0:00:09]} 5. e4 {[%emt 0:00:16]} c6 {[%emt 0:01:19]} 6. Be2 {[%emt 0:01:04]} g6 {[%emt 0:00:22]} 7. O-O {[%emt 0:00:36]} Bg7 {[%emt 0:00:07]} 8. d5 {[%emt 0:01:37]} cxd5 {[%emt 0:00:43]} 9. cxd5 {[%emt 0:00:06]} O-O {[%emt 0:00:10]} 10. Qc2 {[%emt 0:01:26]} Ne8 {[%emt 0:04:58]} 11. Bg5 {[%emt 0:01:28]} Ndf6 {[%emt 0:00:32]} 12. Qd2 {[%emt 0:02:47]} Bg4 {[%emt 0:03:47]} 13. Rfc1 {[%emt 0:00:35]} Kh8 {[%emt 0:08:34]} 14. h3 {[%emt 0:03:37]} Bxf3 {[%emt 0:00:32]} 15. Bxf3 {[%emt 0:00:04]} Qd7 {[%emt 0:00:59]} 16. a4 {[%emt 0:01:11]} Ng8 {[%emt 0:01:42]} 17. Qd3 {[%emt 0:07:27]} f5 {[%emt 0:01:57]} 18. Bd2 {[%emt 0:00:14]} Ngf6 {[%emt 0:01:27]} 19. Rc2 {[%emt 0:02:30]} fxe4 {[%emt 0:03:46]} 20. Nxe4 {[%emt 0:00:44]} Nxe4 {[%emt 0:00:06]} 21. Bxe4 {[%emt 0:00:16]} Nf6 {[%emt 0:00:07]} 22. Be3 {[%emt 0:03:39]} a6 {[%emt 0:02:02]} 23. a5 {[%emt 0:03:05]} Rac8 {[%emt 0:02:09]} 24. Rc3 {[%emt 0:11:37]} Nxe4 {[%emt 0:05:57]} 25. Qxe4 {[%emt 0:03:33]} Qb5 {[%emt 0:00:10]} 26. Rxc8 {[%emt 0:11:54]} Rxc8 {[%emt 0:01:05]} 27. Qg4 {[%emt 0:02:19]} Re8 {[%emt 0:00:43]} 28. Qa4 {[%emt 0:00:20]} e4 {[%emt 0:22:12]} 29. Qxb5 {[%emt 0:01:18]} axb5 {[%emt 0:00:02]} 30. a6 {[%emt 0:01:26]} bxa6 {[%emt 0:00:04]} 31. Rxa6 {[%emt 0:00:03]} Bxb2 {[%emt 0:00:21]} 32. Rb6 {[%emt 0:02:31]} Be5 {[%emt 0:02:06]} 33. Rxb5 {[%emt 0:00:06]} Ra8 {[%emt 0:00:49]} 34. g3 {[%emt 0:00:12]} Ra1+ {[%emt 0:03:23]} 35. Kg2 {[%emt 0:00:05]} Rd1 {[%emt 0:00:05]} 36. Rb4 {[%emt 0:06:30]} Rxd5 {[%emt 0:00:31]} 37. Rxe4 {[%emt 0:00:04]} Kg7 {[%emt 0:00:09]} 38. Ra4 {[%emt 0:01:25]} h5 {[%emt 0:04:37]} 39. g4 {[%emt 0:00:09]} Kf7 {[%emt 0:00:40]} 40. Ra7+ {[%emt 0:03:16]} Ke6 {[%emt 0:00:39]} 41. gxh5 {[%emt 0:30:06]} gxh5 {[%emt 0:30:06]} 42. Rh7 {[%emt 0:00:07]} Bf6 {[%emt 0:00:19]} 43. Kg3 {[%emt 0:04:31]} Rf5 {[%emt 0:01:37]} 44. Rb7 {[%emt 0:05:31]} d5 {[%emt 0:05:32]} 45. Rb6+ {[%emt 0:00:09]} Ke5 {[%emt 0:00:31]} 46. Rb4 {[%emt 0:00:20]} Ke6 {[%emt 0:02:24]} 47. Rb6+ {[%emt 0:02:40]} Kd7 {[%emt 0:00:17]} 48. Rb7+ {[%emt 0:00:58]} Kc6 {[%emt 0:00:07]} 49. Rb6+ {[%emt 0:00:03]} Kc7 {[%emt 0:00:06]} 50. Rb4 {[%emt 0:00:25]} Bc3 {[%emt 0:00:55]} 51. Ra4 {[%emt 0:00:42]} Kc6 {[%emt 0:00:06]} 52. h4 {[%emt 0:05:58]} Kb5 {[%emt 0:00:48]} 53. Ra8 {[%emt 0:00:05]} d4 {[%emt 0:01:38]} 54. Bf4 {[%emt 0:00:31]} Be1 {[%emt 0:08:13]} 55. Ra2 {[%emt 0:04:28]} d3 {[%emt 0:05:20]} 56. Be3 {[%emt 0:00:05]} Kc4 {[%emt 0:01:32]} 57. Kg2 {[%emt 0:04:52]} Kb3 {[%emt 0:00:10]} 58. Ra1 {[%emt 0:00:14]} Bc3 {[%emt 0:04:18]} 59. Rb1+ {[%emt 0:00:42]} Kc2 {[%emt 0:00:06]} 60. Rc1+ {[%emt 0:00:05]} Kb2 {[%emt 0:00:24]} 61. Rd1 {[%emt 0:01:07]} Rd5 {[%emt 0:00:16]} 62. Kf3 {[%emt 0:00:41]} d2 {[%emt 0:01:03]} 63. Bxd2 {[%emt 0:04:37]} Bxd2 {[%emt 0:00:06]} 64. Ke4 {[%emt 0:00:03]} Rd8 {[%emt 0:01:27]} 65. f4 {[%emt 0:01:31]} Kc3 {[%emt 0:01:05]} 66. Rf1 {[%emt 0:00:18]} Kc4 {[%emt 0:02:30]} 67. Kf5 {[%emt 0:00:53]} Rg8 {[%emt 0:02:24]} 68. Ke6 {[%emt 0:00:10]} Rg4 {[%emt 0:00:29]} 69. f5 {[%emt 0:00:07]} Rxh4 {[%emt 0:00:00]} 70. f6 {[%emt 0:00:00]} Bb4 {[%emt 0:00:00]} 71. f7 {[%emt 0:00:00]} Re4+ {[%emt 0:00:00]} 72. Kf5 {[%emt 0:00:00]} Rd4 {[%emt 0:00:00]} 73. Rf4 {[%emt 0:00:00]} Rxf4+ {[%emt 0:03:07] Ke4 [%clk 0:00:00]} 1/2-1/2

[Event "Groningen Festival 2018"]
[Site "Groningen"]
[Date "2018.12.29"]
[Round "8"]
[White "Tiviakov, Sergei"]
[Black "Vrolijk, Liam"]
[Result "1/2-1/2"]
[ECO "C54"]
[WhiteElo "2613"]
[BlackElo "2440"]
[Annotator "ChessBase"]
[PlyCount "108"]
[EventDate "2018.12.22"]
[EventType "swiss"]
[EventCountry "NED"]
[SourceTitle "playchess.com"]
[Source "ChessBase"]
[SourceQuality "1"]
[TimeControl "40/5400+30:1800+30"]

1. e4 {[%emt 0:00:00]} e5 {[%emt 0:00:00]} 2. Nf3 {[%emt 0:00:00]} Nc6 {[%emt 0:00:00]} 3. Bc4 {[%emt 0:00:00]} Bc5 {[%emt 0:00:00]} 4. c3 {[%emt 0:00:00]} Nf6 {[%emt 0:00:00]} 5. d3 {[%emt 0:00:02]} O-O {[%emt 0:00:04]} 6. Bg5 {[%emt 0:00:24]} h6 {[%emt 0:00:20]} 7. Bh4 {[%emt 0:00:13]} Be7 {[%emt 0:00:16]} 8. Nbd2 {[%emt 0:00:12]} d6 {[%emt 0:00:19]} 9. a4 {[%emt 0:01:44]} Nh5 {[%emt 0:05:28]} 10. Bg3 {[%emt 0:00:11]} Nxg3 {[%emt 0:12:16]} 11. hxg3 {[%emt 0:00:06]} Bf6 {[%emt 0:03:27]} 12. Bb3 {[%emt 0:03:50]} Ne7 {[%emt 0:03:51]} 13. Qe2 {[%emt 0:02:51]} c6 {[%emt 0:05:54]} 14. Nc4 {[%emt 0:00:22]} Be6 {[%emt 0:04:27]} 15. Bc2 {[%emt 0:00:37]} a5 {[%emt 0:07:59]} 16. O-O {[%emt 0:02:25]} Re8 {[%emt 0:05:36]} 17. Rfd1 {[%emt 0:10:38]} Qc7 {[%emt 0:03:34]} 18. d4 {[%emt 0:02:11]} exd4 {[%emt 0:10:32]} 19. Nxd4 {[%emt 0:00:20]} Bxc4 {[%emt 0:02:40]} 20. Qxc4 {[%emt 0:00:07]} d5 {[%emt 0:01:23]} 21. exd5 {[%emt 0:04:21]} Nxd5 {[%emt 0:01:14]} 22. Qd3 {[%emt 0:04:59]} g6 {[%emt 0:00:53]} 23. Qf3 {[%emt 0:05:29]} Bg7 {[%emt 0:01:35]} 24. Nb5 {[%emt 0:14:05]} cxb5 {[%emt 0:08:06]} 25. Rxd5 {[%emt 0:11:15]} b4 {[%emt 0:02:02]} 26. Rad1 {[%emt 0:17:53]} Rad8 {[%emt 0:02:59]} 27. Bb3 {[%emt 0:10:21]} Rxd5 {[%emt 0:00:33]} 28. Rxd5 {[%emt 0:00:52]} bxc3 {[%emt 0:01:39]} 29. bxc3 {[%emt 0:00:03]} b6 {[%emt 0:01:43]} 30. Rd6 {[%emt 0:03:59]} Qxd6 {[%emt 0:06:43]} 31. Qxf7+ {[%emt 0:00:05]} Kh7 {[%emt 0:00:06]} 32. Qxe8 {[%emt 0:00:03]} Qf8 {[%emt 0:00:20]} 33. Qe6 {[%emt 0:02:01]} Qd8 {[%emt 0:01:22]} 34. Bc2 {[%emt 0:01:15]} Qg5 {[%emt 0:00:59]} 35. Be4 {[%emt 0:00:37]} Qf6 {[%emt 0:00:39]} 36. Qg4 {[%emt 0:01:42]} Qg5 {[%emt 0:00:05]} 37. Qe6 {[%emt 0:00:13]} Qf6 {[%emt 0:00:07]} 38. Qe8 {[%emt 0:00:27]} Qd6 {[%emt 0:00:12]} 39. Kh2 {[%emt 0:02:14]} Bxc3 {[%emt 0:00:37]} 40. Qf7+ {[%emt 0:00:27]} Bg7 {[%emt 0:00:08]} 41. f4 {[%emt 0:30:29]} Qf6 {[%emt 0:32:05]} 42. Qe8 {[%emt 0:00:00]} h5 {[%emt 0:00:00]} 43. Kh3 {[%emt 0:00:00]} Kh6 {[%emt 0:00:00]} 44. g4 {[%emt 0:00:00]} hxg4+ {[%emt 0:00:00]} 45. Kxg4 {[%emt 0:00:00]} Bf8 {[%emt 0:00:00]} 46. Qd7 {[%emt 0:00:00]} Bd6 {[%emt 0:00:00]} 47. g3 {[%emt 0:00:00]} Be7 {[%emt 0:00:00]} 48. Qc8 {[%emt 0:00:00]} Kg7 {[%emt 0:00:00]} 49. Bd5 {[%emt 0:00:00]} Bf8 {[%emt 0:00:00]} 50. Be6 {[%emt 0:00:00]} Qd4 {[%emt 0:00:00]} 51. Qb7+ {[%emt 0:00:00]} Kh6 {[%emt 0:00:00]} 52. Bb3 {[%emt 0:00:00]} Qd3 {[%emt 0:00:00]} 53. Qh1+ {[%emt 0:00:00]} Kg7 {[%emt 0:00:00]} 54. Qb7+ {[%emt 0:00:00]} Kh6 {[%emt 0:00:00]} 1/2-1/2

[Event "Groningen Festival 2018"]
[Site "Groningen"]
[Date "2018.12.29"]
[Round "8"]
[White "Pruijssers, Roeland"]
[Black "De Boer, Eelke"]
[Result "1-0"]
[ECO "B90"]
[WhiteElo "2520"]
[BlackElo "2327"]
[Annotator "ChessBase"]
[PlyCount "65"]
[EventDate "2018.12.22"]
[EventType "swiss"]
[EventCountry "NED"]
[SourceTitle "playchess.com"]
[Source "ChessBase"]
[SourceQuality "1"]
[TimeControl "40/5400+30:1800+30"]

1. e4 {[%emt 0:00:00]} c5 {[%emt 0:00:09]} 2. Nf3 {[%emt 0:00:00]} d6 {[%emt 0:00:07]} 3. d4 {[%emt 0:00:00]} cxd4 {[%emt 0:00:06]} 4. Nxd4 {[%emt 0:00:00]} Nf6 {[%emt 0:00:08]} 5. Nc3 {[%emt 0:00:05]} a6 {[%emt 0:00:06]} 6. Be3 {[%emt 0:00:06]} e5 {[%emt 0:00:09]} 7. Nb3 {[%emt 0:00:07]} Be6 {[%emt 0:00:07]} 8. Qd2 {[%emt 0:00:07]} Nbd7 {[%emt 0:00:13]} 9. f3 {[%emt 0:00:17]} h5 {[%emt 0:00:18]} 10. Nd5 {[%emt 0:00:11]} Bxd5 {[%emt 0:00:18]} 11. exd5 {[%emt 0:00:06]} g6 {[%emt 0:00:26]} 12. Be2 {[%emt 0:00:27]} Bg7 {[%emt 0:00:09]} 13. O-O {[%emt 0:00:14]} b6 {[%emt 0:00:16]} 14. c4 {[%emt 0:03:53]} O-O {[%emt 0:01:20]} 15. Rae1 {[%emt 0:00:13]} Nh7 {[%emt 0:05:28]} 16. Nc1 {[%emt 0:03:17]} a5 {[%emt 0:01:19]} 17. a4 {[%emt 0:05:03]} Nc5 {[%emt 0:24:01]} 18. Bd1 {[%emt 0:00:18]} f5 {[%emt 0:01:23]} 19. Bc2 {[%emt 0:00:56]} Nf6 {[%emt 0:02:15]} 20. Ne2 {[%emt 0:02:24]} Qd7 {[%emt 0:03:30]} 21. Nc3 {[%emt 0:00:37]} Rab8 {[%emt 0:20:05]} 22. Nb5 {[%emt 1:22:39]} Na6 {[%emt 0:02:14]} 23. Kh1 {[%emt 0:00:00]} f4 {[%emt 0:03:50]} 24. Bf2 {[%emt 0:00:00]} g5 {[%emt 0:00:20]} 25. g3 {[%emt 0:00:00]} Nc5 {[%emt 0:17:31]} 26. gxf4 {[%emt 0:00:00]} gxf4 {[%emt 0:00:05]} 27. Rg1 {[%emt 0:00:00]} Kh8 {[%emt 0:01:32]} 28. Rg6 {[%emt 0:00:00]} Rf7 {[%emt 0:03:15]} 29. Reg1 {[%emt 0:00:00]} e4 {[%emt 0:04:39]} 30. Bd4 {[%emt 0:00:00]} e3 {[%emt 0:03:56]} 31. Qg2 {[%emt 0:00:00]} Ng4 {[%emt 0:01:22]} 32. fxg4 {[%emt 0:00:00]} Bxd4 {[%emt 0:01:06]} 33. Nxd4 {[%emt 0:00:00]} 1-0

[Event "Groningen Festival 2018"]
[Site "Groningen"]
[Date "2018.12.29"]
[Round "8"]
[White "Ulybin, Mikhail"]
[Black "Ladva, Ottomar"]
[Result "0-1"]
[ECO "E04"]
[WhiteElo "2482"]
[BlackElo "2497"]
[Annotator "ChessBase"]
[PlyCount "96"]
[EventDate "2018.12.22"]
[EventType "swiss"]
[EventCountry "NED"]
[SourceTitle "playchess.com"]
[Source "ChessBase"]
[SourceQuality "1"]
[TimeControl "40/5400+30:1800+30"]

1. d4 {[%emt 0:01:00]} Nf6 {[%emt 0:01:21]} 2. c4 {[%emt 0:01:22]} e6 {[%emt 0:00:03]} 3. g3 {[%emt 0:03:33]} d5 {[%emt 0:00:02]} 4. Nf3 {[%emt 0:01:34]} dxc4 {[%emt 0:00:04]} 5. Bg2 {[%emt 0:01:30]} c5 {[%emt 0:00:03]} 6. O-O {[%emt 0:03:00]} Nc6 {[%emt 0:00:02]} 7. dxc5 {[%emt 0:11:19]} Qxd1 {[%emt 0:00:07]} 8. Rxd1 {[%emt 0:00:15]} Bxc5 {[%emt 0:00:02]} 9. Nfd2 {[%emt 0:07:31]} Na5 {[%emt 0:00:11]} 10. Na3 {[%emt 0:01:51]} Bxa3 {[%emt 0:00:04]} 11. bxa3 {[%emt 0:00:17]} Bd7 {[%emt 0:00:02]} 12. Bb2 {[%emt 0:06:18]} Rc8 {[%emt 0:00:12]} 13. Bc3 {[%emt 0:19:13]} b6 {[%emt 0:00:05]} 14. Rab1 {[%emt 0:18:27]} O-O {[%emt 0:24:16]} 15. Rdc1 {[%emt 0:01:55]} h6 {[%emt 0:03:45]} 16. f4 {[%emt 0:10:59]} Nd5 {[%emt 0:08:45]} 17. Bxa5 {[%emt 0:06:13]} c3 {[%emt 0:00:03]} 18. Nb3 {[%emt 0:02:04]} bxa5 {[%emt 0:59:53]} 19. Nxa5 {[%emt 0:00:24]} Rc5 {[%emt 0:00:00]} 20. Nb3 {[%emt 0:00:41]} Rc4 {[%emt 0:00:00]} 21. Kf2 {[%emt 0:00:27]} Rfc8 {[%emt 0:00:00]} 22. Rc2 {[%emt 0:00:29]} Nf6 {[%emt 0:00:00]} 23. Bf3 {[%emt 0:00:33]} e5 {[%emt 0:00:00]} 24. fxe5 {[%emt 0:00:30]} Bf5 {[%emt 0:00:00]} 25. exf6 {[%emt 0:00:33]} Bxc2 {[%emt 0:00:00]} 26. Rc1 {[%emt 0:00:10]} Bf5 {[%emt 0:00:00]} 27. fxg7 {[%emt 0:00:05]} Ra4 {[%emt 0:00:00]} 28. Bd5 {[%emt 0:01:13]} Kxg7 {[%emt 0:00:00]} 29. Ke3 {[%emt 0:00:26]} c2 {[%emt 0:00:00]} 30. Rf1 {[%emt 0:00:23]} Be6 {[%emt 0:00:00]} 31. Bxe6 {[%emt 0:00:16]} fxe6 {[%emt 0:00:00]} 32. Kd2 {[%emt 0:00:40]} Rxa3 {[%emt 0:00:00]} 33. Nc1 {[%emt 0:00:31]} Ra6 {[%emt 0:00:00]} 34. Rf3 {[%emt 0:00:43]} Rd6+ {[%emt 0:00:00]} 35. Rd3 {[%emt 0:00:04]} Rxd3+ {[%emt 0:00:00]} 36. Nxd3 {[%emt 0:00:10]} Kf6 {[%emt 0:00:00]} 37. Kc1 {[%emt 0:00:03]} Kf5 {[%emt 0:00:00]} 38. h3 {[%emt 0:01:21]} h5 {[%emt 0:00:00]} 39. Ne1 {[%emt 0:00:40]} Ke4 {[%emt 0:00:00]} 40. g4 {[%emt 0:00:38]} hxg4 {[%emt 0:00:00]} 41. hxg4 {[%emt 0:30:04]} Ke3 {[%emt 0:00:00]} 42. Ng2+ {[%emt 0:00:30]} Kxe2 {[%emt 0:00:00]} 43. Nf4+ {[%emt 0:00:08]} Ke3 {[%emt 0:00:00]} 44. Nxe6 {[%emt 0:00:09]} Rc6 {[%emt 0:00:00]} 45. Nd8 {[%emt 0:01:31]} Rc4 {[%emt 0:00:00]} 46. Nf7 {[%emt 0:00:00]} Rc5 {[%emt 0:00:00]} 47. Nd8 {[%emt 0:00:00]} Kd3 {[%emt 0:00:00]} 48. Ne6 {[%emt 0:00:00]} Re5 {[%emt 0:00:00]} 0-1

[Event "Groningen Festival 2018"]
[Site "Groningen"]
[Date "2018.12.29"]
[Round "8"]
[White "Warmerdam, Max"]
[Black "Plat, Vojtech"]
[Result "1/2-1/2"]
[ECO "C41"]
[WhiteElo "2433"]
[BlackElo "2550"]
[Annotator "ChessBase"]
[PlyCount "54"]
[EventDate "2018.12.22"]
[EventType "swiss"]
[EventCountry "NED"]
[SourceTitle "playchess.com"]
[Source "ChessBase"]
[SourceQuality "1"]
[TimeControl "40/5400+30:1800+30"]

1. e4 {[%emt 0:00:00]} d6 {[%emt 0:05:27]} 2. d4 {[%emt 0:00:00]} Nf6 {[%emt 0:00:04]} 3. Nc3 {[%emt 0:00:00]} e5 {[%emt 0:00:03]} 4. Nf3 {[%emt 0:00:00]} Nbd7 {[%emt 0:00:03]} 5. Bc4 {[%emt 0:00:00]} Be7 {[%emt 0:00:03]} 6. a4 {[%emt 0:00:00]} O-O {[%emt 0:00:04]} 7. O-O {[%emt 0:00:02]} a5 {[%emt 0:00:02]} 8. Re1 {[%emt 0:00:20]} c6 {[%emt 0:00:02]} 9. h3 {[%emt 0:00:05]} Nb6 {[%emt 0:00:03]} 10. Bb3 {[%emt 0:00:13]} Nfd7 {[%emt 0:00:04]} 11. Be3 {[%emt 0:00:05]} exd4 {[%emt 0:00:04]} 12. Nxd4 {[%emt 0:00:05]} Nc5 {[%emt 0:00:03]} 13. Qf3 {[%emt 0:00:07]} Bg5 {[%emt 0:01:47]} 14. Rad1 {[%emt 0:00:09]} Bxe3 {[%emt 0:00:57]} 15. Qxe3 {[%emt 0:00:05]} Re8 {[%emt 0:05:06]} 16. Qf4 {[%emt 0:07:28]} Qe7 {[%emt 0:05:18]} 17. Re3 {[%emt 0:17:21]} Nxb3 {[%emt 0:01:05]} 18. cxb3 {[%emt 0:01:23]} Qe5 {[%emt 0:00:08]} 19. Qh4 {[%emt 0:02:10]} Qe7 {[%emt 0:05:47]} 20. Qxe7 {[%emt 0:39:03]} Rxe7 {[%emt 0:00:06]} 21. Nc2 {[%emt 0:00:52]} Be6 {[%emt 0:01:29]} 22. Rxd6 {[%emt 0:01:16]} Bxb3 {[%emt 0:01:07]} 23. Nd5 {[%emt 0:00:14]} Bxd5 {[%emt 0:12:52]} 24. exd5 {[%emt 0:00:03]} Rxe3 {[%emt 0:02:00]} 25. Nxe3 {[%emt 0:00:19]} Nxa4 {[%emt 0:00:07]} 26. dxc6 {[%emt 0:00:40]} bxc6 {[%emt 0:00:03]} 27. Nc4 {[%emt 0:00:20]} g6 {[%emt 0:00:44]} 1/2-1/2

[Event "Groningen Festival 2018"]
[Site "Groningen"]
[Date "2018.12.29"]
[Round "8"]
[White "Schoppen, Casper"]
[Black "Ernst, Sipke"]
[Result "1-0"]
[ECO "C50"]
[WhiteElo "2431"]
[BlackElo "2539"]
[Annotator "ChessBase"]
[PlyCount "143"]
[EventDate "2018.12.22"]
[EventType "swiss"]
[EventCountry "NED"]
[SourceTitle "playchess.com"]
[Source "ChessBase"]
[SourceQuality "1"]
[TimeControl "40/5400+30:1800+30"]

1. e4 {[%emt 0:00:00]} e5 {[%emt 0:00:00]} 2. Nf3 {[%emt 0:00:00]} Nc6 {[%emt 0:00:00]} 3. Bc4 {[%emt 0:00:00]} d6 {[%emt 0:00:00]} 4. d4 {[%emt 0:01:21]} Be7 {[%emt 0:05:30]} 5. h3 {[%emt 0:11:45]} Nf6 {[%emt 0:04:35]} 6. Nc3 {[%emt 0:00:13]} O-O {[%emt 0:00:53]} 7. O-O {[%emt 0:00:26]} exd4 {[%emt 0:02:29]} 8. Nxd4 {[%emt 0:00:05]} Re8 {[%emt 0:01:17]} 9. Nxc6 {[%emt 0:03:01]} bxc6 {[%emt 0:00:07]} 10. Qf3 {[%emt 0:00:24]} Rb8 {[%emt 0:17:29]} 11. Rd1 {[%emt 0:13:36]} Bf8 {[%emt 0:04:20]} 12. Bb3 {[%emt 0:04:31]} Qe7 {[%emt 0:05:02]} 13. Re1 {[%emt 0:09:08]} h6 {[%emt 0:09:42]} 14. Bf4 {[%emt 0:07:34]} Nh7 {[%emt 0:04:36]} 15. Qg3 {[%emt 0:02:39]} Kh8 {[%emt 0:05:07]} 16. Rad1 {[%emt 0:07:33]} a5 {[%emt 0:01:35]} 17. Bc1 {[%emt 0:02:14]} g5 {[%emt 0:04:07]} 18. f4 {[%emt 0:12:12]} gxf4 {[%emt 0:01:38]} 19. Qxf4 {[%emt 0:01:18]} Ng5 {[%emt 0:06:05]} 20. Kh1 {[%emt 0:03:39]} Bg7 {[%emt 0:01:33]} 21. Qh4 {[%emt 0:05:16]} Kg8 {[%emt 0:06:05]} 22. Qh5 {[%emt 0:02:50]} Be6 {[%emt 0:10:10]} 23. Re3 {[%emt 0:04:30]} Bxb3 {[%emt 0:03:37]} 24. axb3 {[%emt 0:00:19]} f6 {[%emt 0:02:51]} 25. h4 {[%emt 0:03:20]} Qf7 {[%emt 0:00:05]} 26. Qe2 {[%emt 0:00:54]} Ne6 {[%emt 0:00:08]} 27. Rf1 {[%emt 0:00:57]} Kh8 {[%emt 0:02:04]} 28. Qf3 {[%emt 0:01:29]} Qg6 {[%emt 0:00:13]} 29. Ne2 {[%emt 0:00:54]} Rb5 {[%emt 0:00:42]} 30. Ng3 {[%emt 0:00:38]} Re5 {[%emt 0:01:06]} 31. Bd2 {[%emt 0:01:23]} Nd4 {[%emt 0:00:28]} 32. Qd1 {[%emt 0:00:34]} f5 {[%emt 0:00:55]} 33. c3 {[%emt 0:01:01]} f4 {[%emt 0:00:56]} 34. Rxf4 {[%emt 0:00:12]} Ne6 {[%emt 0:00:28]} 35. Rg4 {[%emt 0:00:19]} Qh7 {[%emt 0:00:14]} 36. Nf5 {[%emt 0:00:57]} h5 {[%emt 0:00:10]} 37. Rgg3 {[%emt 0:00:15]} Bf6 {[%emt 0:00:30]} 38. c4 {[%emt 0:00:30]} Ng7 {[%emt 0:00:02]} 39. Nxg7 {[%emt 0:00:18]} Bxg7 {[%emt 0:00:08]} 40. Bc3 {[%emt 0:00:06]} Bf6 {[%emt 0:02:01]} 41. Bxe5 {[%emt 0:30:43]} Rxe5 {[%emt 0:30:06]} 42. Qf1 {[%emt 0:00:00]} Qe7 {[%emt 0:00:00]} 43. Ref3 {[%emt 0:00:00]} Bg7 {[%emt 0:00:00]} 44. Rf4 {[%emt 0:00:00]} Rxe4 {[%emt 0:00:00]} 45. Rxe4 {[%emt 0:00:00]} Qxe4 {[%emt 0:00:00]} 46. Qd1 {[%emt 0:00:00]} Qxh4+ {[%emt 0:00:00]} 47. Rh3 {[%emt 0:00:00]} Qe4 {[%emt 0:00:00]} 48. Qxh5+ {[%emt 0:00:00]} Kg8 {[%emt 0:00:00]} 49. Rf3 {[%emt 0:00:00]} Qe6 {[%emt 0:00:00]} 50. Qg5 {[%emt 0:00:00]} Qd7 {[%emt 0:00:00]} 51. Re3 {[%emt 0:00:00]} Kf8 {[%emt 0:00:00]} 52. Qxa5 {[%emt 0:01:26]} Be5 {[%emt 0:00:00]} 53. Qe1 {[%emt 0:00:55]} Qh7+ {[%emt 0:00:00]} 54. Rh3 {[%emt 0:00:06]} Qc2 {[%emt 0:00:00]} 55. Qf1+ {[%emt 0:00:58]} Ke7 {[%emt 0:00:00]} 56. Rd3 {[%emt 0:00:17]} c5 {[%emt 0:00:00]} 57. g3 {[%emt 0:01:25]} Qxb2 {[%emt 0:00:37]} 58. Qf3 {[%emt 0:01:39]} Qc2 {[%emt 0:00:42]} 59. Re3 {[%emt 0:00:38]} Kd7 {[%emt 0:04:37]} 60. Re2 {[%emt 0:00:19]} Qg6 {[%emt 0:00:40]} 61. Kg2 {[%emt 0:00:20]} Qg7 {[%emt 0:00:27]} 62. Rf2 {[%emt 0:00:26]} Ke7 {[%emt 0:00:37]} 63. Qd3 {[%emt 0:00:48]} Kd7 {[%emt 0:00:47]} 64. Qf3 {[%emt 0:01:38]} Ke7 {[%emt 0:00:01]} 65. g4 {[%emt 0:00:50]} Bd4 {[%emt 0:01:07]} 66. Rf1 {[%emt 0:00:18]} Bf6 {[%emt 0:00:09]} 67. Qe4+ {[%emt 0:00:26]} Kd8 {[%emt 0:01:00]} 68. Qf5 {[%emt 0:00:19]} Be7 {[%emt 0:00:39]} 69. Rf2 {[%emt 0:00:05]} c6 {[%emt 0:01:05]} 70. Ra2 {[%emt 0:00:29]} Kc7 {[%emt 0:00:02]} 71. Qe6 {[%emt 0:00:26]} Kb6 {[%emt 0:00:17]} 72. Qc8 {[%emt 0:00:09]} 1-0

[Event "Groningen Festival 2018"]
[Site "Groningen"]
[Date "2018.12.29"]
[Round "8"]
[White "Zwirs, Nico"]
[Black "Krasenkova, Ilena"]
[Result "0-1"]
[ECO "B06"]
[WhiteElo "2414"]
[BlackElo "2144"]
[Annotator "NA"]
[PlyCount "118"]
[EventDate "2018.12.22"]
[EventType "swiss"]
[EventCountry "NED"]
[SourceTitle "playchess.com"]
[Source "ChessBase"]
[SourceQuality "1"]
[TimeControl "40/5400+30:1800+30"]

1. e4 {[%emt 0:00:00]} g6 {[%emt 0:00:00]} 2. d4 {[%emt 0:00:00]} Bg7 {[%emt 0:00:00]} 3. Nc3 {[%emt 0:00:49]} c6 {[%emt 0:00:00]} 4. Nf3 {[%emt 0:00:05]} Nf6 {[%emt 0:00:48]} 5. e5 {[%emt 0:05:01]} Nd5 {[%emt 0:00:06]} 6. Nxd5 {[%emt 0:00:55]} cxd5 {[%emt 0:00:05]} 7. Bf4 {[%emt 0:00:32]} b5 {[%emt 0:06:54]} 8. Qd2 {[%emt 0:00:29]} Qb6 {[%emt 0:00:07]} 9. O-O-O {[%emt 0:20:53]} h6 {[%emt 0:00:08]} 10. h4 {[%emt 0:11:28]} Nc6 {[%emt 0:01:21]} 11. Nh2 {[%emt 0:11:15]} b4 {[%emt 0:08:07]} 12. Ng4 {[%emt 0:07:02]} h5 {[%emt 0:00:50]} 13. Ne3 {[%emt 0:05:46]} e6 {[%emt 0:00:28]} 14. g4 {[%emt 0:00:13]} Ba6 {[%emt 0:01:32]} 15. gxh5 {[%emt 0:02:31]} Rxh5 {[%emt 0:00:36]} 16. Bg5 {[%emt 0:01:18]} Bxf1 {[%emt 0:02:12]} 17. Nxf1 {[%emt 0:04:12]} d6 {[%emt 0:21:55]} 18. f4 {[%emt 0:02:40]} Qa6 {[%emt 0:15:12]} 19. Kb1 {[%emt 0:00:29]} Kd7 {[%emt 0:00:10]} 20. Ng3 {[%emt 0:00:44]} Rh7 {[%emt 0:01:14]} 21. h5 {[%emt 0:01:12]} Rah8 {[%emt 0:00:05]} 22. hxg6 {[%emt 0:01:01]} Rxh1 {[%emt 0:00:15]} 23. Nxh1 {[%emt 0:00:02]} fxg6 {[%emt 0:00:40]} 24. Nf2 {[%emt 0:00:43]} Rh2 {[%emt 0:02:51]} 25. Qe3 {[%emt 0:00:18]} Qc4 {[%emt 0:02:35]} 26. b3 {[%emt 0:00:52]} Qa6 {[%emt 0:01:35]} 27. Re1 {[%emt 0:02:57]} dxe5 {[%emt 0:01:30]} 28. Nd3 {[%emt 0:01:57]} Kc7 {[%emt 0:04:33]} 29. fxe5 {[%emt 0:01:27]} Qc8 {[%emt 0:01:03]} 30. Qf4 {[%emt 0:02:04]} Rg2 {[%emt 0:05:38]} 31. Bf6 {[%emt 0:06:59]} Bf8 {[%emt 0:00:44]} 32. Qf3 {[%emt 0:01:30]} Rxc2 {[%emt 0:01:05]} 33. Qg4 {[%emt 0:06:31]} Rc3 {[%emt 0:07:22]} 34. Nb2 {[%emt 0:00:05]} Qd7 {[%emt 0:01:45]} 35. Rd1 {[%emt 0:01:19]} g5 {[%emt 0:02:56]} 36. Qh5 {[%emt 0:01:14]} g4 {[%emt 0:00:43]} 37. Na4 {[%emt 0:01:15]} Rh3 {[%emt 0:01:52]} 38. Qxg4 {[%emt 0:00:05]} Qh7+ {[%emt 0:00:04]} 39. Ka1 {[%emt 0:00:48]} Rh1 {[%emt 0:01:07]} 40. Nb2 {[%emt 0:00:42]} Rxd1+ {[%emt 0:02:00]} 41. Qxd1 {[%emt 0:00:11]} Qe4 {[%emt 0:00:00]} 42. Nd3 {[%emt 0:04:17]} Qxd4+ {[%emt 0:02:54]} 43. Kb1 {[%emt 0:00:02]} Bh6 {[%emt 0:12:18]} 44. Qf1 {[%emt 0:09:20]} Be3 {[%emt 0:02:46]} 45. Bg7 {[%emt 0:04:58]} Kb6 {[%emt 0:00:38]} 46. Bf8 {[%emt 0:00:41]} Qe4 {[%emt 0:02:39]} 47. Bd6 {[%emt 0:01:43]} a5 {[%emt 0:01:11]} 48. Qe2 Qh1+ {[%emt 0:00:30]} 49. Ne1 Qg1 {[%emt 0:00:30]} 50. a4 Nd4 {[%emt 0:00:30]} 51. Qd1 Bf2 {[%emt 0:00:30]} 52. Qc1 Qxe1 {[%emt 0:00:30]} 53. Bc5+ Kc6 {[%emt 0:00:30]} 54. Qxe1 Bxe1 {[%emt 0:00:30]} 55. Bxd4 Bc3 {[%emt 0:00:30]} 56. Be3 Bxe5 {[%emt 0:00:30]} 57. Kc2 Bc7 {[%emt 0:00:30]} 58. Kd3 e5 {[%emt 0:00:30]} 59. Bg5 Bb6 {[%emt 0:00:30]} 0-1